Cogmind - Beta 14 @@@ ROGUE MODE // 2024.10.15 @ 08:27:37 Player: Xaria Result: Destroyed by W1-JO2(R) with Subdweller Laser Performance ------------- Evolutions (0) 0 Regions Visited (3) 600 Robots Destroyed (43) 215 Value Destroyed (811) 811 Prototype IDs (0) 0 Alien Tech Used (0) 0 Bonus (0) 0 TOTAL SCORE: 1626 Bonus ------- None Cogmind --------- Core Integrity 0/250 Matter 227/300 Energy 227/250 System Corruption 0% Temperature Cool (12) Movement Treading (320) Ox2 Location -10/Subcaves Parts ------- > --- POWER (1) -------- Ion Engine > --- PROPULSION (2) --- Light Treads Light Treads > --- UTILITY (2) ------ Huge Storage Unit Improved Light Armor Plating > --- WEAPON (2) ------- Assault Rifle Light Cannon > --- INVENTORY (25) --- Ion Engine Light Treads Light Treads Light Treads Wheel Compact Wheel Cryofiber Web Large Storage Unit Compact Matter Pod (134) Structural Scanner Structural Scanner Sensor Array Signal Interpreter Terrain Scanner Hacking Suite EM Pulse Gun EM Pulse Gun EM Pulse Cannon Assault Rifle Assault Rifle Subdweller Machine Gun Grenade Launcher Mining Claw Peak State ------------ > --- POWER ------------ Ion Engine > --- PROPULSION ------- Light Treads Wheel > --- UTILITY ---------- Huge Storage Unit Improved Light Armor Plating > --- WEAPON ----------- Medium Laser Assault Rifle > --- INVENTORY -------- Ion Engine Light Treads Light Treads Light Treads Light Treads Compact Wheel Cryofiber Web Large Storage Unit Compact Matter Pod Structural Scanner Structural Scanner Sensor Array Signal Interpreter Terrain Scanner Hacking Suite EM Pulse Gun EM Pulse Gun EM Pulse Cannon Assault Rifle Assault Rifle Assault Rifle Light Cannon Grenade Launcher Mining Claw [Rating: 12] Favorites ----------- Power Ion Engine Engine Ion Engine Propulsion Light Treads Treads Light Treads Wheel Wheel Utility Seismic Detector Device Seismic Detector Storage Huge Storage Unit Protection Improved Light Armor Plating Weapon Assault Rifle Energy Gun Medium Laser Ballistic Gun Assault Rifle Ballistic Cannon Light Cannon Slashing Weapon Mining Claw Build | -11 -10 -10 -10 ------- Run | Yrd Mat Min Sub Slots Evolved . | . . . . Power . | . . . . Propulsion . | . . . . Utility . | . . . . Weapon . | . . . . Parts Attached 44 | 7 22 5 10 Power 4 | 1 3 . . Engine 4 | 1 3 . . Core . | . . . . Reactor . | . . . . Propulsion 16 | 2 9 2 3 Treads 9 | . 6 1 2 Leg . | . . . . Wheel 7 | 2 3 1 1 Hover . | . . . . Flight . | . . . . Utility 8 | 2 2 1 3 Device 3 | 1 . 1 1 Storage 3 | 1 2 . . Processor . | . . . . Hackware . | . . . . Protection 2 | . . . 2 Artifact . | . . . . Weapon 16 | 2 8 2 4 Energy Gun 3 | . 2 1 . Energy Cannon . | . . . . Ballistic Gun 7 | 2 2 1 2 Ballistic Cannon 3 | . 2 . 1 Launcher . | . . . . Special Weapon . | . . . . Impact Weapon . | . . . . Slashing Weapon 3 | . 2 . 1 Piercing Weapon . | . . . . Special Melee Weapon . | . . . . Unidentified Prototypes . | . . . . Parts Lost 5 | . 4 . 1 Power . | . . . . Propulsion 2 | . 2 . . Utility 1 | . . . 1 Weapon 2 | . 2 . . Highest Loss Streak 3 | . 3 . 1 To Critical Strikes . | . . . . Average Slot Usage (%) 99 | . 99 100 99 Engine 14 | . 14 14 14 Treads 16 | . 17 14 15 Wheel 11 | . 10 13 12 Device 13 | . 14 14 8 Storage 14 | . 14 14 14 Energy Gun 7 | . 7 14 2 Ballistic Gun 13 | . 13 14 11 Ballistic Cannon 5 | . 5 . 11 Slashing Weapon 1 | . 1 . 2 Peak Build Rating 12 | 7 9 10 12 Average Rating 8 | 5 7 9 10 On Entrance 6 | . 7 9 10 Naked Turns . | . . . . Heaviest Build 93 | 15 91 90 93 Greatest Support 40 | 26 40 10 16 Greatest Overweight (x) 9 | . 9 8 8 Average Overweight (x) 3 | . 2 8 5 Largest Inventory Capacity 25 | 8 25 25 25 Average Capacity 18 | 7 16 25 25 Most Carried 25 | 7 24 25 25 Average Carried 15 | 3 13 24 23 Final Capacity 25 | 8 25 25 25 Final Carried 25 | 7 24 25 23 Class Distribution -------------------- 100% | Mutant Dominant Class ---------------- Mutant | -10/Materials Mutant | -10/Mines Mutant | -10/Subcaves Resources | -11 -10 -10 -10 ----------- Run | Yrd Mat Min Sub Matter Collected 1321 | 238 896 137 50 Remotely . | . . . . Salvage Created 1474 | 116 1110 143 105 Parts 92 | 4 71 9 8 Haulers Intercepted 2 | . 2 . . Recyclers Shooed 4 | 1 3 . . Parts Field Recycled . | . . . . Retrieved Matter . | . . . . Parts Self-Destructed 2 | . . . 2 Prevented . | . . . . Kills | -11 -10 -10 -10 ------- Run | Yrd Mat Min Sub Combat Hostiles Destroyed 24 | . 17 5 2 Guns 19 | . 12 5 2 Cannons 4 | . 4 . . Classes Destroyed 11 | 2 8 . 1 Worker 2 | . 2 . . Builder 3 | . 3 . . Tunneler 2 | 1 . 1 . Hauler 2 | . 2 . . Recycler 4 | 1 3 . . Mechanic 1 | . 1 . . Operator 2 | . 2 . . Watcher 3 | . 3 . . Swarmer 8 | . 5 3 . Grunt 14 | . 12 2 . Subdweller 2 | . . . 2 Best Kill Streak 8 | 1 8 3 2 Combat Bots Only 7 | . 7 3 2 Max Kills in Single Turn 2 | 1 1 2 1 Gunslinging 1 | . . 1 . Exploded . | . . . . Melee . | . . . . Uniques/NPCs Destroyed . | . . . . Combat | -11 -10 -10 -10 -------- Run | Yrd Mat Min Sub Hostile Shots Fired 163 | . 119 30 14 Missed 37 | . 27 7 3 Damage Taken 1481 | . 1005 220 256 Core 260 | . 150 49 61 Absorbed by Shields . | . . . . Regen/Repaired (Parts) 132 | . 132 . . Core Remaining (%) 100 | 100 . . . Volleys Fired 139 | 5 111 17 6 Largest 2 | 2 2 2 2 Hottest 85 | 40 85 70 70 Shots Fired 266 | 10 210 34 12 Gun 244 | 10 190 34 10 Cannon 22 | . 20 . 2 Launcher . | . . . . Special . | . . . . Kinetic 201 | 10 166 17 8 Thermal 56 | . 35 17 4 Explosive . | . . . . Electromagnetic 9 | . 9 . . Robot Hit Streak 11 | 5 11 5 8 Robot Miss Streak 5 | 3 5 3 1 Penetration Max . | . . . . Secondary Targets 4 | . 3 1 . Max Gunslinging Chain 1 | . 1 1 . Shots Hit Robots 161 | 6 123 24 8 Core Hits 69 | 3 54 8 4 Critical Kills 1 | . . 1 . Critical Parts Destroyed 2 | . 2 . . Critical Strikes 8 | . 5 2 1 Burn 5 | . 3 1 1 Destroy 3 | . 2 1 . Melee Attacks 12 | . 5 . 7 Impact . | . . . . Slashing 12 | . 5 . 7 Piercing . | . . . . Sneak Attacks . | . . . . Combat Hostiles . | . . . . Follow-up Attacks . | . . . . Damage Inflicted 2194 | 74 1696 319 105 Guns 1962 | 74 1480 319 89 Cannons 232 | . 216 . 16 Explosions . | . . . . Melee . | . . . . Ramming . | . . . . Kinetic 1551 | 74 1274 149 54 Thermal 583 | . 362 170 51 Explosive . | . . . . Electromagnetic 60 | . 60 . . Impact . | . . . . Slashing . | . . . . Piercing . | . . . . Highest Corruption . | . . . . Average Corruption . | . . . . Corruption Purged . | . . . . Corruption Blocked . | . . . . Overload Shots . | . . . . Overflow Damage . | . . . . Projectiles . | . . . . Explosions . | . . . . Melee . | . . . . Knockbacks 3 | . 3 . . Impact . | . . . . Kinetic 3 | . 3 . . Secondary . | . . . . Self-Inflicted Damage . | . . . . Shots . | . . . . Rammed . | . . . . Targets Rammed . | . . . . Kicked . | . . . . Crushed . | . . . . Highest Temperature 363 | . 363 174 . Average Temperature 96 | . 105 69 . Received Heat Transfer 651 | . 513 84 54 Effects 8 | . 8 . . Shutdowns 1 | . 1 . . Energy Bleed 4 | . 4 . . Interference 2 | . 2 . . Short Circuit 1 | . 1 . . Siege Activations . | . . . . Robots Corrupted . | . . . . Combat Hostiles . | . . . . Parts Fried . | . . . . Impact Corruptions . | . . . . Robots Melted 1 | . 1 . . Combat Hostiles 1 | . 1 . . Parts Melted 7 | . 3 4 . Heat Transferred 2072 | . 1295 555 222 Parts Sabotaged . | . . . . Parts Stolen . | . . . . Parts Stripped . | . . . . Power Chain Reactions . | . . . . Alert | -11 -10 -10 -10 ------- Run | Yrd Mat Min Sub Peak Influence 304 | 10 304 222 . Initial 97 | . 6 97 . Average 156 | 4 166 144 . Maximum Alert Level 1 | . 1 1 . Low Security (%) 61 | 100 55 84 . Level 1 38 | . 44 15 . Level 2 . | . . . . Level 3 . | . . . . Level 4 . | . . . . Level 5 . | . . . . High Security . | . . . . Max Security . | . . . . Squads Dispatched 5 | . 4 1 . Investigation 2 | . 1 1 . Extermination . | . . . . Reinforcement 3 | . 3 . . Assault . | . . . . Garrison . | . . . . Intercept . | . . . . Searches Triggered . | . . . . Construction Impeded . | . . . . Haulers Reinforced . | . . . . Active Scanning Responses . | . . . . Cargo Convoy Interrupts . | . . . . Stealth | -11 -10 -10 -10 --------- Run | Yrd Mat Min Sub Distress Signals 1 | . 1 . . Communications Jammed . | . . . . Distress Signals . | . . . . Times Spotted 44 | . 34 5 5 Peak Tracking Total 6 | . 6 3 3 Tactical Retreats 2 | . 2 . . Traps | -11 -10 -10 -10 ------- Run | Yrd Mat Min Sub Traps Triggered . | . . . . Indirectly . | . . . . Trap Hack Attempts . | . . . . Triggered . | . . . . Disarmed . | . . . . Reprogrammed . | . . . . Reused . | . . . . Traps Extracted . | . . . . Installed . | . . . . Triggered . | . . . . Machines | -11 -10 -10 -10 ---------- Run | Yrd Mat Min Sub Machines Disabled 1 | . 1 . . Max in Single Turn 1 | . 1 . . Machines Repaired . | . . . . Machines Dismantled . | . . . . Machines Sabotaged . | . . . . Overloaded Fab Kills . | . . . . Hacking | -11 -10 -10 -10 --------- Run | Yrd Mat Min Sub Machines Accessed 7 | . 6 1 . Terminals 4 | . 4 . . Fabricators . | . . . . Repair Stations 1 | . 1 . . Recycling Units 1 | . 1 . . Scanalyzers . | . . . . Garrison Access . | . . . . Total Hacks 21 | . 20 1 . Successful 8 | . 7 1 . Failed 13 | . 13 . . Catastrophic 3 | . 3 . . Database Lockouts . | . . . . Manual 11 | . 11 . . Terminals 11 | . 11 . . Fabricators . | . . . . Repair Stations 4 | . 4 . . Recycling Units 5 | . 5 . . Scanalyzers . | . . . . Garrison Access . | . . . . Terminal Hacks 2 | . 1 1 . Robot Analysis 1 | . 1 . . Open Door 1 | . . 1 . Fabricator Hacks . | . . . . Repair Station Hacks 4 | . 4 . . Scan Component 2 | . 2 . . Repair 2 | . 2 . . Recycling Unit Hacks . | . . . . Scanalyzer . | . . . . Garrison Access Hacks . | . . . . Unauthorized Hacks 2 | . 2 . . Terminals 2 | . 2 . . Botnet 2 | . 2 . . Fabricators . | . . . . Repair Stations . | . . . . Recycling Units . | . . . . Scanalyzers . | . . . . Garrison Access . | . . . . Data Cores Recovered . | . . . . Used . | . . . . Hacking Detections 6 | . 6 . . Full Trace Events 1 | . 1 . . Feedback Events . | . . . . Feedback Blocked . | . . . . Robot Schematics Acquired . | . . . . Robots Built . | . . . . Authchips . | . . . . Time . | . . . . Total Robot Build Rating . | . . . . Part Schematics Acquired . | . . . . Parts Built . | . . . . Authchips . | . . . . Time . | . . . . Total Part Build Rating . | . . . . Parts Repaired 2 | . 2 . . Time 52 | . 52 . . Parts Recycled . | . . . . Recycled Matter . | . . . . Retrieved Matter . | . . . . Retrieved Components . | . . . . Parts Scanalyzed . | . . . . Part Schematics Acquired . | . . . . Parts Damaged . | . . . . Bothacking | -11 -10 -10 -10 ------------ Run | Yrd Mat Min Sub Used RIF Installer . | . . . . Robots Hacked . | . . . . Non-combat . | . . . . Combat . | . . . . Robot Hacks Applied . | . . . . Relay Couplers Released . | . . . . Fabnet Peak Effective % . | . . . . Robots Rewired . | . . . . Allies Hacked . | . . . . Hacks Repelled . | . . . . Allies | -11 -10 -10 -10 -------- Run | Yrd Mat Min Sub Total Allies . | . . . . Largest Group . | . . . . Highest-Rated Group . | . . . . Highest-Rated Ally . | . . . . Total Orders . | . . . . Ally Attacks . | . . . . Total Damage . | . . . . Kills . | . . . . Allies Corrupted . | . . . . Allies Melted 1 | . . . 1 Intel | -11 -10 -10 -10 ------- Run | Yrd Mat Min Sub Robot Analysis Total 1 | . 1 . . Derelict Logs Recovered . | . . . . Drone Launches . | . . . . Drone Recoveries . | . . . . Exploration | -11 -10 -10 -10 ------------- Run | Yrd Mat Min Sub Turns Passed 2217 | 73 1586 305 253 Spaces Moved 1022 | 46 743 121 112 Core 2 | 2 . . . Treads 165 | . 165 . . Legs . | . . . . Wheels 855 | 44 578 121 112 Hover . | . . . . Flight . | . . . . Fastest Speed 50 | 50 90 200 175 Average Speed 150 | 88 142 200 178 Slowest Speed 240 | 100 240 200 200 Overloaded Moves . | . . . . Propulsion Burnouts . | . . . . Robots Hopped . | . . . . Cave-ins Triggered . | . . . . Exploration Rate (%) 34 | 4 98 26 9 Regions Visited 3 Branch Regions 2 Pre-discovered Areas . | . . . . Known Exits Taken . | . . . . Unknown Exits Taken 3 | 1 1 1 . Scrap Searched . | . . . . Spaces Dug 5 | . 5 . . Terrain Destroyed 5 | . 5 . . Melee 5 | . 5 . . Projectile . | . . . . AOE . | . . . . Terrain Rammed . | . . . . Walls Destroyed . | . . . . Machines Disabled . | . . . . Actions | -11 -10 -10 -10 --------- Run | Yrd Mat Min Sub Total 1406 | 64 1052 151 139 Wait 124 | . 122 1 1 Move 1019 | 45 742 120 112 Hop . | . . . . Pick Up 45 | 7 33 4 1 Fast Attach 13 | 7 5 1 . Attach 10 | . 6 1 3 Detach . | . . . . Swap 21 | . 11 3 7 Drop 23 | . 17 4 2 Fire 139 | 5 111 17 6 Melee 12 | . 5 . 7 Ram . | . . . . Kick . | . . . . Crush . | . . . . Escape Stasis . | . . . . Rewire . | . . . . Trap . | . . . . Miscellaneous . | . . . . Route ------- -11/Scrapyard -10/Materials (discovered 5 exits: [*Mat x3] / *Min x2) -10/Mines -10/Subcaves History --------- Turn | Location | Event 30 | -11/Scrapyard | Discovered new exit (range 16) 74 | -11/Scrapyard | Entered Materials 223 | -10/Materials | Discovered new exit (range 15) 320 | -10/Materials | Build established: Mutant 322 | -10/Materials | Discovered new exit (range 10) 376 | -10/Materials | Discovered new exit (range 8) 708 | -10/Materials | Repaired Assault Rifle 736 | -10/Materials | Repaired Assault Rifle 907 | -10/Materials | Lost 3 parts (1n2w) 915 | -10/Materials | Destroyed 7 combat bots 1109 | -10/Materials | Core integrity fell below 50% 1155 | -10/Materials | Discovered new exit (range 6) 1459 | -10/Materials | Discovered new exit (range 9) 1660 | -10/Materials | Entered Mines 1714 | -10/Mines | Met a Derelict shopkeep closing up shop 1953 | -10/Mines | Discovered new exit (range 6) 1965 | -10/Mines | Entered Subcaves 1968 | -10/Subcaves | Ambushed by Subdwellers from Twisted Machinery 1973 | -10/Subcaves | A swath of the cavern ceiling suddenly collapsed 1998 | -10/Subcaves | Core integrity fell below 20% 2214 | -10/Subcaves | Ambushed by swarm of Subdwellers 2218 | -10/Subcaves | Destroyed by W1-JO2(R) with Subdweller Laser Last Messages --------------- Analyzer. 01993_ WI-DR9(R) suffers critical hit (Burn). 01996_ Seismic Detector destroyed. 01999_ WI-DR9(R) destroyed. 02005_ ZG-0LB(R) destroyed. 02008_ Dropped Assault Rifle. 02009_ Dropped Med. Laser. 02061_ Subatomizers dissect the Disposable Heat Sink. 02071_ Acquired 50 matter. 02072_ Subatomizers dissect the Disposable Heat Sink. 02078_ Acquired Sub. Machine Gun. 02086_ Subatomizers dissect the Disposable Heat Sink. E2-6A0(R) comes tumbling into view. 02216_ BG-67Q(R) emerges from the Twisted Machinery. 02216_ W1-JO2(R) emerges from the Twisted Machinery. Map ----- +----------------------------------------------------+ | ?????????????????????????????????????????????????? | | ?????????????????????????????????????????????????? | | ?????????????????????????????????????????????????? | | ?????????????????????????????????????????????????? | | ?????"???????????????????????????????????????????? | | ???? " ?????????????????????????????????????????? | | ???? ???????????????????????????????????????? | | #??#" ????????????????????????????????????????? | | ##""" ??????????????????????????????????????? | | """"" ??????????????????????????????????????? | | """" #?????????????????????????????????????? | | " """ ???????????????????????????????????????? | | ##### """??????????????????????????????????????? | | #??????????????????????????????????????????????? | | ###????????????????????????????????????????????? | | ####???????????### ??????????????????????????? | | # #??????????#######????????????????????????? | | ## #??????????### ######????? #?????????????? | | ?## ##?###??##### #####???? ##?????????????? | | ??## #? ##?###### ## ##??? ###?????????????? | | ???## ### #?## ### ###?? ###??????????????? | | ???# ## #?## ## #### ##???????????????? | | ???## #?### ## ##???????????????? | | ???# # ##?### ##???????????????? | | ???# ##### RR% ##???????????????? | | ???## # ### @ R ###??????????????? | | #??# [[& " ###### ##### ##??????????????? | | #??##&!#&&#"####### ###### ??? ????????? | | ??## !%&###"" ##### #########????? ###????????? | | ??#*#!###"""#"##### ##########?????####????????? | | ??##""##"####"#### ### ## ?????????????????? | | ##?###"" " " """ ##?????????????????? | | #####""#"#""#"###" # ????????????????? | | # ## "######"#### ## ????????????????? | | " #"###"#"####### ##????????????????? | | #"#"#####"######## ## ###????????????????? | | ###"#### ####??## ########????????????????? | | "##""""#"###???##### ######?????????????????? | | #"#""""""####???##### ###???????????????????? | | "###""#""#"#?????## ##???????????????????? | | ## "##"#"#""##?????##### ##???????????????????? | | ??############?????###### ###???????????????????? | | ????##########????????### ####???????????????????? | | ????????????????????????#####????????????????????? | | ????????????????????????####?????????????????????? | | ?????????????????????????????????????????????????? | | ?????????????????????????????????????????????????? | | ?????????????????????????????????????????????????? | | ?????????????????????????????????????????????????? | | ?????????????????????????????????????????????????? | +----------------------------------------------------+ Best States ------------- Heat Dissipation 25 Energy Generation 10 Energy Capacity 250 Matter Stores 300 Matter Capacity 300 Sight Range 16 Terrain Scan Density 10 Armor Coverage 150 Evasion (%) 42 Recoil Reduction 2 Item Schematics ----------------- None Robot Schematics ------------------ None Fabricated ------------ Nothing Alien Tech Used ----------------- None Achievements -------------- It's Just You Challenges ------------ None Game ------ Seed ThrowingFluxUnit Manual? 0 Play Time 00:25:22 Cumulative 11.3 hours Start 2024.10.15 @ 08:01:39 End 2024.10.15 @ 08:27:37 Sessions 1 Manual Loads 0 Difficulty Rogue Special Mode None Game No. 14 Rogue 14 Adventurer 0 Explorer 0 Win Type - Total 0 Types 0/0/0/0/0/0/0/0/0 Lore% 19 Gallery% 12 Achievement% 19 Wizard Run 0 Options --------- Layout 1 ASCII 0 Keyboard 0 Movement Mouse Keybinds 0 Fullscreen 1 Font 24/Smallcaps Map View 50x35 Zoom Use 0% Tactical HUD 1 Map Filters NONE Filters NONE Steam 1 RUN: 928e55b0-1bc5-42a3-abc7-1c1f2d52521e